fUSD/lending_fUSD_20251217
["ID","MTS","AMOUNT","RATE_DAILY","PERIOD"]
[398920709,1765997443516,-1067.11062403,0.00016438,2]
[398920710,1765997443526,-1067.11062403,0.00016438,2]
[398920711,1765997443536,-1067.11062403,0.00016438,2]
[398920712,1765997443545,-1067.11062403,0.00016438,2]
[398920713,1765997443554,-1067.11062403,0.00016438,2]
[398920714,1765997443563,-1067.11062403,0.00016438,2]
[398920715,1765997443573,-1067.11062403,0.00016438,2]
[398920716,1765997443582,-1067.11062403,0.00016438,2]
[398920717,1765997443592,-1067.11062403,0.00016438,2]
[398920718,1765997443601,-1051.86618656,0.00016438,2]
[398920719,1765997443611,-1051.86618656,0.00016438,2]
[398920720,1765997443624,-1051.86618656,0.00016438,2]
[398920721,1765997443634,-1051.86618656,0.00016438,2]
[398920722,1765997443643,-1051.86618656,0.00016438,2]
[398920723,1765997443652,-1051.86618656,0.00016438,2]
[398920724,1765997443662,-1051.86618656,0.00016438,2]
[398920725,1765997443671,-1051.86618656,0.00016438,2]
[398920726,1765997443681,-1051.86618656,0.00016438,2]
[398920727,1765997443691,-1051.86618656,0.00016438,2]
[398920729,1765997443701,-1051.86618656,0.00016438,2]
[398920730,1765997443710,-1051.86618656,0.00016438,2]
[398920731,1765997443720,-1051.86618656,0.00016438,2]
[398920732,1765997443730,-1051.86618656,0.00016438,2]
[398920733,1765997443739,-1051.86618656,0.00016438,2]
[398920734,1765997443749,-1051.86618656,0.00016438,2]
[398920736,1765997443758,-1051.86618656,0.00016438,2]
[398920737,1765997443768,-1051.86618656,0.00016438,2]
[398920739,1765997443777,-1051.86618656,0.00016438,2]
[398920741,1765997443787,-1051.86618656,0.00016438,2]
[398920743,1765997443796,-1051.86618656,0.00016438,2]
[398920744,1765997443806,-150.0,0.00016477,2]
[398920746,1765997443815,-150.0,0.00016487,2]
[398920747,1765997443825,-150.0,0.00016501,2]
[398920748,1765997443837,-150.0,0.00016501,2]
[398920749,1765997443846,-150.0,0.00016523,2]
[398920750,1765997443855,-391.87908379,0.00016525,2]
[398920751,1765997443865,-940.82,0.00016525,2]
[398920752,1765997443876,-150.0,0.00016562,2]
[398920753,1765997443885,-150.0,0.00016562,2]
[398920754,1765997443896,-150.0,0.00016562,2]
[398920755,1765997443908,-150.0,0.00016562,2]
[398920756,1765997443919,-150.0,0.00016562,2]
[398920757,1765997443930,-150.0,0.00016562,2]
[398920758,1765997443954,-577.0,0.00016562,2]
[398920759,1765997443966,-150.0,0.00016562,2]
[398920760,1765997443977,-500.0,0.00016562,2]
[398920761,1765997443989,-150.0,0.00016562,2]
[398920762,1765997443999,-150.0,0.00016562,2]
[398920763,1765997444013,-500.0,0.00016562,2]
[398920764,1765997444024,-500.0,0.00016562,2]
[398920765,1765997444035,-500.0,0.00016562,2]
[398920766,1765997444045,-150.0,0.00016562,2]
[398920767,1765997444545,-150.0,0.00016562,2]
[398920768,1765997444555,-150.0,0.00016562,2]
[398920769,1765997444565,-150.0,0.00016562,2]
[398920770,1765997444574,-900.0,0.00016574,2]
[398920771,1765997444583,-150.0,0.00016575,2]
[398920772,1765997444593,-14610.67287126,0.00016584,2]
[398920773,1765997444602,-150.0,0.00016587,2]
[398920774,1765997444611,-1600.0,0.00016605,2]
[398920775,1765997444621,-150.0,0.00016622,2]
[398920776,1765997444631,-9542.00036259,0.00016632,2]
[398920777,1765997444642,-150.0,0.00016647,2]
[398920778,1765997444651,-150.0,0.00016677,2]
[398920779,1765997444660,-150.0,0.00016687,2]
[398920780,1765997444669,-150.0,0.00016699,2]
[398920781,1765997444679,-577.0,0.00016699,2]
[398920782,1765997444688,-500.0,0.00016699,2]
[398920783,1765997444698,-150.0,0.00016699,2]
[398920784,1765997444707,-500.0,0.00016699,2]
[398920785,1765997444716,-500.0,0.00016699,2]
[398920786,1765997444726,-500.0,0.00016699,2]
[398920787,1765997444735,-150.0,0.00016699,2]
[398920788,1765997444744,-150.0,0.00016699,2]
[398920789,1765997444754,-150.0,0.00016699,2]
[398920790,1765997444763,-200.0,0.00016699,2]
[398920791,1765997444772,-150.0,0.00016712,2]
[398920792,1765997444782,-150.0,0.00016732,2]
[398920793,1765997444791,-150.0,0.00016744,2]
[398920794,1765997444801,-150.0,0.00016744,2]
[398920795,1765997444810,-150.0,0.00016774,2]
[398920796,1765997444819,-150.0,0.00016774,2]
[398920797,1765997444828,-200.0,0.00016774,2]
[398920798,1765997444837,-2291.85364901,0.00016777,2]
[398920799,1765997444847,-150.0,0.00016786,2]
[398920800,1765997444856,-608.15439105,0.00016794,2]
[398920801,1765997444865,-940.82,0.00016799,2]
[398920802,1765997444875,-453.0240721,0.00016801,2]
[398920803,1765997444884,-150.0,0.00016816,2]
[398920804,1765997444894,-7210.48397139,0.0001683,2]
[398920805,1765997444904,-150.0,0.00016832,2]
[398920806,1765997444913,-150.0,0.00016836,2]
[398920807,1765997444922,-577.0,0.00016836,2]
[398920808,1765997444931,-500.0,0.00016836,2]
[398920809,1765997444942,-150.0,0.00016836,2]
[398920810,1765997444951,-500.0,0.00016836,2]
[398920811,1765997444961,-500.0,0.00016836,2]
[398920812,1765997444971,-321.81530924,0.00016836,2]
[398920813,1765997444982,-150.0,0.00016836,2]
[398920814,1765997444995,-200.0,0.00016836,2]
[398920815,1765997445006,-257.10428919,0.00016836,2]
[398920816,1765997445016,-453.02407209,0.00016851,2]
[398920817,1765997445027,-150.0,0.00016865,2]
[398920818,1765997445046,-1000.0,0.00016882,2]
[398920819,1765997445057,-150.0,0.00016886,2]
[398920820,1765997445068,-10000.0,0.000169,2]
[398920821,1765997445078,-9542.00036259,0.000169,2]
[398920822,1765997445088,-14610.67287126,0.000169,2]
[398920823,1765997445098,-453.02407209,0.000169,2]
[398920824,1765997445108,-714.62754035,0.000169,2]
[398920825,1765997445118,-518.46715855,0.000169,2]
[398920826,1765997445128,-150.0,0.00016901,2]
[398920827,1765997445138,-200.01825375,0.00016916,2]
[398920828,1765997445147,-2198.0,0.00016959,2]
[398920829,1765997445158,-251.34012987,0.00016965,2]
[398920830,1765997445168,-786.97,0.00016972,2]
[398920831,1765997445177,-362.45517721,0.00016973,2]
[398920832,1765997445187,-500.0,0.00016973,2]
[398920833,1765997445198,-500.0,0.00016973,2]
[398920834,1765997445209,-172.70389334,0.00016973,2]
[398920835,1765997445219,-500.0,0.00016973,2]
[398920836,1765997445228,-163.04694688,0.00016973,2]
[398920837,1765997445238,-172.5432271,0.00016973,2]
[398920838,1765997445248,-161.46144241,0.00016973,2]
[398920839,1765997445258,-500.0,0.00016973,2]
[398920840,1765997445268,-500.0,0.00016973,2]
[398920841,1765997445278,-500.0,0.00016973,2]
[398920842,1765997445288,-500.0,0.00016973,2]
[398920843,1765997445298,-500.0,0.00016973,2]
[398920844,1765997445309,-500.0,0.00016973,2]
[398920845,1765997445318,-500.0,0.00016973,2]
[398920846,1765997445328,-500.0,0.00016973,2]
[398920847,1765997445338,-174.68173524,0.00016973,2]
[398920848,1765997445348,-500.0,0.00016973,2]
[398920849,1765997445358,-500.0,0.00016973,2]
[398920850,1765997445367,-500.0,0.00016973,2]
[398920851,1765997445377,-161.98577807,0.00016973,2]
[398920852,1765997445387,-165.24964768,0.00016973,2]
[398920853,1765997445398,-276.35412541,0.00016973,2]
[398920854,1765997445407,-500.0,0.00016973,2]
[398920855,1765997445417,-216.18014628,0.00016973,2]
[398920856,1765997445427,-165.73663313,0.00016973,2]
[398920857,1765997445438,-535.93880539,0.00016973,2]
[398920858,1765997445447,-562.4542945,0.00016973,2]
[398920859,1765997445457,-500.0,0.00016973,2]
[398920860,1765997445466,-500.0,0.00016973,2]
[398920861,1765997445478,-500.0,0.00016973,2]
[398920862,1765997445487,-500.65867875,0.00016973,2]
[398920863,1765997445497,-500.0,0.00016973,2]
[398920864,1765997445506,-179.43625326,0.00016973,2]
[398920865,1765997445517,-500.0,0.00016973,2]
[398920866,1765997445526,-160.16120282,0.00016973,2]
[398920867,1765997445536,-500.0,0.00016973,2]
[398920868,1765997445545,-500.0,0.00016973,2]
[398920869,1765997445555,-500.1936276,0.00016973,2]
[398920870,1765997445564,-500.0,0.00016973,2]
[398920871,1765997445574,-168.53762372,0.00016973,2]
[398920872,1765997445587,-162.80787779,0.00016973,2]
[398920873,1765997445598,-502.16839762,0.00016973,2]
[398920874,1765997445608,-500.0,0.00016973,2]
[398920875,1765997445618,-500.0,0.00016973,2]
[398920876,1765997445628,-500.0,0.00016973,2]
[398920877,1765997445638,-500.0,0.00016973,2]
[398920878,1765997445648,-500.0,0.00016973,2]
[398920879,1765997445659,-500.0,0.00016973,2]
[398920880,1765997445669,-150.0,0.00016973,2]
[398920881,1765997445678,-577.0,0.00016973,2]
[398920882,1765997445690,-444.05868298,0.00016973,2]
[398920883,1765997445700,-150.0,0.00016973,2]
[398920884,1765997445710,-500.0,0.00016973,2]
[398920885,1765997445721,-399.44474318,0.00016973,2]
[398920886,1765997445732,-150.0,0.00016973,2]
[398920887,1765997445743,-150.0,0.00016973,2]
[398920888,1765997445754,-150.0,0.00016973,2]
[398920889,1765997445765,-500.0,0.00016986,2]
[398920890,1765997445776,-150.0,0.00016986,2]
[398920891,1765997445787,-150.0,0.00016986,2]
[398920892,1765997445798,-150.0,0.00016986,2]
[398920893,1765997445809,-150.00000001,0.00016986,2]
[398920894,1765997445819,-259.27927663,0.00016986,2]
[398920895,1765997445830,-150.00000001,0.00016986,2]
[398920896,1765997445840,-151.17525831,0.00016986,2]
[398920897,1765997445850,-179.90570441,0.00016986,2]
[398920898,1765997445860,-153.15599333,0.00016986,2]
[398920899,1765997445870,-150.0,0.00016986,2]
[398920900,1765997445881,-150.00000001,0.00016986,2]
[398920901,1765997445890,-916.2127563,0.0001699,2]
[398920902,1765997445901,-916.2127563,0.0001699,2]
[398920903,1765997445911,-150.0,0.00016997,2]
[398920904,1765997445921,-151.0,0.00016997,2]
[398920905,1765997445931,-500.0,0.00016999,2]
[398920906,1765997445943,-500.0,0.00016999,2]
[398920907,1765997445952,-500.0,0.00016999,2]
[398920909,1765997445962,-500.0,0.00016999,2]
[398920910,1765997445972,-500.0,0.00016999,2]
[398920911,1765997445986,-500.0,0.00016999,2]
[398920912,1765997445996,-500.0,0.00016999,2]
[398920913,1765997446005,-500.0,0.00016999,2]
[398920915,1765997446015,-500.0,0.00016999,2]
[398920916,1765997446026,-500.0,0.00016999,2]
[398920918,1765997446035,-500.0,0.00016999,2]
[398920919,1765997446044,-500.0,0.00016999,2]
[398920920,1765997446054,-500.0,0.00016999,2]
[398920921,1765997446064,-500.0,0.00016999,2]
[398920922,1765997446074,-500.0,0.00016999,2]
[398920923,1765997446084,-500.0,0.00016999,2]
[398920924,1765997446093,-500.0,0.00016999,2]
[398920925,1765997446102,-500.0,0.00016999,2]
[398920926,1765997446112,-500.0,0.00016999,2]
[398920927,1765997446121,-500.0,0.00016999,2]
[398920928,1765997446131,-500.0,0.00016999,2]
[398920929,1765997446141,-500.0,0.00016999,2]
[398920930,1765997446150,-500.0,0.00016999,2]
[398920931,1765997446160,-500.0,0.00016999,2]
[398920932,1765997446170,-500.0,0.00016999,2]
[398920933,1765997446179,-500.0,0.00016999,2]
[398920935,1765997446189,-500.0,0.00016999,2]
[398920937,1765997446199,-500.0,0.00016999,2]
[398920938,1765997446208,-500.0,0.00016999,2]
[398920940,1765997446218,-500.0,0.00016999,2]
[398920941,1765997446227,-500.0,0.00016999,2]
[398920943,1765997446237,-639.7,0.00016999,2]
[398920945,1765997446247,-786.97,0.00016999,2]
[398920947,1765997446257,-786.97,0.00016999,2]
[398920948,1765997446268,-786.97,0.00016999,2]
[398920950,1765997446278,-786.97,0.00016999,2]
[398920952,1765997446288,-786.97,0.00016999,2]
[398920953,1765997446298,-786.97,0.00016999,2]
[398920954,1765997446308,-786.97,0.00016999,2]
[398920955,1765997446318,-786.97,0.00016999,2]
[398920956,1765997446328,-786.97,0.00016999,2]
[398920957,1765997446338,-786.97,0.00016999,2]
[398920958,1765997446361,-786.97,0.00016999,2]
[398920959,1765997446384,-786.97,0.00016999,2]
[398920960,1765997446395,-786.97,0.00016999,2]
[398920961,1765997446405,-786.97,0.00016999,2]
[398920962,1765997446416,-786.97,0.00016999,2]
[398920963,1765997446426,-786.97,0.00016999,2]
[398920964,1765997446436,-786.97,0.00016999,2]
[398920965,1765997446450,-787.12816268,0.00016999,2]
[398920966,1765997446460,-3117620.61815363,0.00017,2]
[398920971,1765997447715,-7642.48386988,0.00017,2]
[398920972,1765997447728,-3226.84867635,0.00017,2]
[398920973,1765997447739,-374.97728309,0.00017,2]
[398920974,1765997447751,-6256.36404,0.00017,2]
[398920975,1765997447841,-3689.52,0.00017,2]
[398920976,1765997447852,-2838.0,0.00017,2]
[398920977,1765997447864,-6040.04781648,0.00017,2]
[398920978,1765997447875,-25051.29371914,0.00017,2]
[398920979,1765997447888,-1518.12334425,0.00017,2]
[398920980,1765997447900,-88385.44996153,0.00017,2]
[398920981,1765997447912,-2397.28504221,0.00017,2]
[398920982,1765997447925,-265.96,0.00017,2]
[398920983,1765997447936,-7028.84508125,0.00017,2]
[398920984,1765997447949,-820.95209632,0.00017,2]
[398920985,1765997447961,-90138.42393929,0.00017,2]
[398920986,1765997447972,-523.0,0.00017,2]
[398920987,1765997447986,-4303.43110028,0.00017,2]
[398920988,1765997447997,-907.96447581,0.00017,2]
[398920989,1765997448009,-532.00000002,0.00017,2]
[398920990,1765997448021,-1718.78,0.00017,2]
[398920991,1765997448043,-17845.8268315,0.00017,2]
[398920992,1765997448056,-298.51436949,0.00017,2]
[398920993,1765997448068,-513521.66747812,0.00017,2]
[398920994,1765997448078,-756814.6159408,0.00017,2]
[398920995,1765997448090,-3280.84999999,0.00017,2]
[398920996,1765997448102,-1767.28124999,0.00017,2]
[398920997,1765997448247,-404.2423,0.00017,2]
[398920998,1765997448259,-7903.8628021,0.00017,2]
[398920999,1765997448275,-465.08686962,0.00017,2]
[398921000,1765997448292,-3033.12709565,0.00017,2]
[398921001,1765997448305,-416315.3656895,0.00017,2]
[398921002,1765997448316,-66104.72992143,0.00017,2]
[398921003,1765997448327,-2838.0,0.00017,2]
[398921004,1765997448429,-10264.48088164,0.00017,2]
[398921005,1765997448443,-2722.2997918,0.00017,2]
[398921006,1765997448456,-36612.06427784,0.00017,2]
[398921007,1765997448479,-7650.0702,0.00017,2]
[398921008,1765997448491,-1004.86603967,0.00017,2]
[398921009,1765997448503,-2303.00617388,0.00017,2]
[398921010,1765997448515,-16382.54989279,0.00017,2]
[398921011,1765997448528,-503.26943875,0.00017,2]
[398921012,1765997448539,-411.999998,0.00017,2]
[398921013,1765997448551,-1168.39909905,0.00017,2]
[398921014,1765997448563,-2074.74606667,0.00017,2]
[398921015,1765997448574,-6652.16,0.00017,2]
[398921016,1765997449361,500.0,0.00023,120]
[398921020,1765997844089,905.35222855,0.00018,30]
[398921023,1765997852923,500.0,0.00018,30]
[398921024,1765997853457,500.0,0.00018,30]
[398921025,1765997858042,-3196.892,0.00013779,2]
[398921026,1765997858076,-178.742,0.00013779,2]
[398921027,1765997858103,-250.0,0.00013824,2]
[398921028,1765997858132,-300.0,0.00013869,2]
[398921031,1765997915114,-300.0,0.00013959,2]
[398921032,1765997915144,-1200.0,0.00013959,2]
[398921033,1765997915170,-300.0,0.00013959,2]
[398921034,1765997915198,-744.0,0.00013959,2]
[398921035,1765997915224,-722.10107742,0.0001396,2]
[398921036,1765997915250,-1975.1765,0.0001396,2]
[398921037,1765997915274,-469.3962698,0.0001396,2]
[398921038,1765997915299,-401.26197856,0.0001396,2]
[398921039,1765997915324,-300.0,0.00013963,2]
[398921040,1765997915348,-300.0,0.00013963,2]
[398921041,1765997915373,-300.0,0.00013963,2]
[398921042,1765997916221,454.8775,0.00013679,2]
[398921043,1765997960956,212.1,0.00013307,2]
[398921044,1765997971529,2500.0,0.0001396,2]
[398921045,1765997982051,2100.26428237,0.0001396,2]
[398921046,1765998000946,248.47391742,0.00012,2]
[398921047,1765998081970,5033.09283102,0.0001396,2]
[398921048,1765998093924,2557.514,0.00013779,2]
[398921049,1765998094054,178.742,0.00013779,2]
[398921050,1765998108296,427.134,0.0001396,2]
[398921051,1765998114769,8350.23164341,0.0001396,2]
[398921052,1765998130580,999.0,0.00015194,3]
[398921094,1765998633006,-324.98920754,0.00013684,2]
[398921095,1765998633019,-1242.82150411,0.00013684,2]
[398921096,1765998633031,-3035.99999999,0.00013684,2]
[398921097,1765998633044,-2672.63928836,0.00013684,2]
[398921098,1765998633054,-6957.06,0.00013684,2]
[398921099,1765998633064,-250.0,0.00013691,2]
[398921100,1765998633075,-563.84,0.00013699,2]
[398921101,1765998633085,-1200.0,0.00013763,2]
[398921102,1765998633100,-300.0,0.00013764,2]
[398921103,1765998633111,-674.34505658,0.0001386,2]
[398921104,1765998633121,-300.0,0.00013881,2]
[398921105,1765998633131,-151.99563163,0.00013956,2]
[398921106,1765998633141,-150.0,0.00013956,2]
[398921107,1765998633151,-300.0,0.00013956,2]
[398921108,1765998633161,-300.0,0.00013956,2]
[398921109,1765998633171,-2126.4957,0.00013957,2]
[398921110,1765998633181,-500.0,0.00013957,2]
[398921111,1765998633191,-488.62154656,0.00013957,2]
[398921112,1765998633200,-346.48975932,0.00013957,2]
[398921113,1765998633210,-500.0,0.00013957,2]
[398921114,1765998633219,-500.0,0.00013957,2]
[398921115,1765998633229,-500.0,0.00013957,2]
[398921116,1765998633238,-500.57538567,0.00013957,2]
[398921117,1765998633248,-152.84845944,0.00013957,2]
[398921118,1765998633257,-500.0,0.00013957,2]
[398921119,1765998633267,-500.0,0.00013957,2]
[398921120,1765998633280,-500.0,0.00013957,2]
[398921121,1765998633290,-211.21695247,0.00013957,2]
[398921122,1765998633300,-500.0,0.00013957,2]
[398921123,1765998633314,-500.0,0.00013957,2]
[398921124,1765998633324,-500.0,0.00013957,2]
[398921125,1765998633337,-500.0,0.00013957,2]
[398921126,1765998633354,-500.0,0.00013957,2]
[398921127,1765998633364,-500.0,0.00013957,2]
[398921128,1765998633374,-500.0,0.00013957,2]
[398921129,1765998633385,-500.0,0.00013957,2]
[398921130,1765998633395,-500.0,0.00013957,2]
[398921131,1765998633405,-500.0,0.00013957,2]
[398921132,1765998633415,-500.0,0.00013957,2]
[398921133,1765998633426,-500.0,0.00013957,2]
[398921134,1765998633435,-500.0,0.00013957,2]
[398921135,1765998633445,-500.0,0.00013957,2]
[398921136,1765998633455,-500.0,0.00013957,2]
[398921137,1765998633465,-264.24610635,0.00013957,2]
[398921138,1765998633482,-235.75389365,0.00013957,2]
[398921139,1765998633492,-109.47799335,0.00013957,2]
[398921140,1765998633508,-390.52200665,0.00013957,2]
[398921141,1765998633518,-500.0,0.00013957,2]
[398921142,1765998633528,-500.0,0.00013957,2]
[398921143,1765998633539,-500.0,0.00013957,2]
[398921144,1765998633549,-500.0,0.00013957,2]
[398921145,1765998633559,-500.0,0.00013957,2]
[398921146,1765998633569,-500.0,0.00013957,2]
[398921147,1765998633580,-500.0,0.00013957,2]
[398921148,1765998633590,-500.0,0.00013957,2]
[398921149,1765998633604,-500.0,0.00013957,2]
[398921150,1765998633614,-500.0,0.00013957,2]
[398921151,1765998633625,-500.0,0.00013957,2]
[398921152,1765998633637,-500.0,0.00013957,2]
[398921153,1765998633650,-500.0,0.00013957,2]
[398921154,1765998633660,-500.0,0.00013957,2]
[398921155,1765998633672,-500.0,0.00013957,2]
[398921156,1765998633688,-500.0,0.00013957,2]
[398921157,1765998633699,-312.15546581,0.00013957,2]
[398921158,1765998633711,-500.0,0.00013957,2]
[398921159,1765998633722,-500.0,0.00013957,2]
[398921160,1765998633732,-500.0,0.00013957,2]
[398921161,1765998633744,-500.0,0.00013957,2]
[398921162,1765998633755,-500.0,0.00013957,2]
[398921163,1765998633765,-189.27274362,0.00013957,2]
[398921164,1765998633892,-310.72725638,0.00013957,2]
[398921165,1765998633902,-500.0,0.00013957,2]
[398921166,1765998633912,-500.0,0.00013957,2]
[398921167,1765998633921,-500.0,0.00013957,2]
[398921168,1765998633931,-500.0,0.00013957,2]
[398921169,1765998633941,-500.0,0.00013957,2]
[398921170,1765998633950,-500.0,0.00013957,2]
[398921171,1765998633960,-500.0,0.00013957,2]
[398921172,1765998633969,-435.86941808,0.00013957,2]
[398921173,1765998633982,-64.13058192,0.00013957,2]
[398921174,1765998633992,-400.0,0.00013957,2]
[398921175,1765998634002,-342.67054527,0.00013957,2]
[398921176,1765998634055,-157.32945473,0.00013957,2]
[398921177,1765998634065,-1371.72379671,0.00013958,2]
[398921178,1765998637402,-11924.463474,0.00013958,2]
[398921179,1765998637411,-193.33171339,0.00013958,2]
[398921180,1765998637422,-78230.79348171,0.00013958,2]
[398921181,1765998637433,-52620.18943946,0.00013958,2]
[398921182,1765998637444,-86486.43214493,0.00013958,2]
[398921183,1765998637459,-85500.0,0.00013958,2]
[398921184,1765998637470,-604.0,0.00013958,2]
[398921185,1765998637481,-27248.08636569,0.00013958,2]
[398921186,1765998637511,-429310.49856821,0.00013958,2]
[398921187,1765998637521,-2341.2151,0.0001396,2]
[398921188,1765998637530,-9523.83814421,0.0001396,2]
[398921189,1765998637540,-212.1,0.00014046,2]
[398921190,1765998637550,-151.0,0.00014052,2]
[398921191,1765998637560,-151.0,0.00014052,2]
[398921192,1765998637570,-151.0,0.00014052,2]
[398921194,1765998637580,-151.0,0.00014052,2]
[398921196,1765998637589,-151.0,0.00014052,2]
[398921197,1765998637602,-151.0,0.00014052,2]
[398921198,1765998637611,-151.0,0.00014052,2]
[398921199,1765998637620,-151.0,0.00014052,2]
[398921201,1765998637630,-500.0,0.00014052,2]
[398921203,1765998637639,-151.0,0.00014052,2]
[398921205,1765998637649,-500.0,0.00014052,2]
[398921207,1765998637658,-151.0,0.00014052,2]
[398921209,1765998637668,-500.0,0.00014052,2]
[398921211,1765998637677,-151.0,0.00014052,2]
[398921213,1765998637686,-500.0,0.00014052,2]
[398921215,1765998637695,-151.0,0.00014052,2]
[398921217,1765998637704,-200.0,0.00014052,2]
[398921219,1765998637714,-500.0,0.00014052,2]
[398921221,1765998637723,-151.0,0.00014052,2]
[398921223,1765998637732,-500.0,0.00014052,2]
[398921224,1765998637742,-151.0,0.00014052,2]
[398921226,1765998637752,-151.0,0.00014052,2]
[398921229,1765998637761,-151.0,0.00014052,2]
[398921230,1765998637770,-151.0,0.00014052,2]
[398921233,1765998637780,-500.0,0.00014052,2]
[398921236,1765998637789,-151.0,0.00014052,2]
[398921238,1765998637799,-151.0,0.00014052,2]
[398921240,1765998637809,-151.0,0.00014052,2]
[398921242,1765998637818,-500.0,0.00014052,2]
[398921244,1765998637827,-151.0,0.00014052,2]
[398921246,1765998637836,-151.0,0.00014052,2]
[398921248,1765998637847,-500.0,0.00014052,2]
[398921250,1765998637856,-500.0,0.00014052,2]
[398921252,1765998637865,-151.0,0.00014052,2]
[398921254,1765998637874,-151.0,0.00014052,2]
[398921256,1765998637885,-500.0,0.00014052,2]
[398921258,1765998637894,-500.0,0.00014052,2]
[398921259,1765998637905,-151.0,0.00014052,2]
[398921260,1765998637914,-151.0,0.00014052,2]
[398921261,1765998637922,-500.0,0.00014052,2]
[398921262,1765998637931,-500.0,0.00014052,2]
[398921263,1765998637940,-151.0,0.00014052,2]
[398921264,1765998637949,-500.0,0.00014052,2]
[398921265,1765998637958,-500.0,0.00014052,2]
[398921266,1765998637967,-151.0,0.00014052,2]
[398921267,1765998637976,-500.0,0.00014052,2]
[398921268,1765998637985,-500.0,0.00014052,2]
[398921269,1765998637994,-151.0,0.00014052,2]
[398921270,1765998638003,-500.0,0.00014052,2]
[398921272,1765998638012,-151.0,0.00014052,2]
[398921274,1765998638021,-500.0,0.00014052,2]
[398921276,1765998638030,-151.0,0.00014052,2]
[398921277,1765998638039,-500.0,0.00014052,2]
[398921279,1765998638049,-151.0,0.00014052,2]
[398921281,1765998638059,-151.0,0.00014052,2]
[398921283,1765998638068,-500.0,0.00014052,2]
[398921285,1765998638078,-500.0,0.00014052,2]
[398921287,1765998638088,-500.0,0.00014052,2]
[398921289,1765998638097,-500.0,0.00014052,2]
[398921291,1765998638105,-500.0,0.00014052,2]
[398921293,1765998638115,-500.0,0.00014052,2]
[398921295,1765998638125,-194.21929349,0.00014052,2]
[398921297,1765998638134,-200.0,0.00014052,2]
[398921299,1765998638144,-200.0,0.00014052,2]
[398921301,1765998638153,-1053.62,0.00014052,2]
[398921303,1765998638163,-151.0,0.00014054,2]
[398921305,1765998638172,-1000.0,0.00014057,2]
[398921307,1765998638182,-1000.0,0.00014057,2]
[398921309,1765998638191,-1000.0,0.00014057,2]
[398921311,1765998638201,-1000.0,0.00014057,2]
[398921313,1765998638210,-1000.0,0.00014057,2]
[398921315,1765998638219,-1000.0,0.00014057,2]
[398921317,1765998638228,-1000.0,0.00014057,2]
[398921319,1765998638238,-1000.0,0.00014057,2]
[398921321,1765998638248,-1000.0,0.00014057,2]
[398921323,1765998638257,-1000.0,0.00014057,2]
[398921325,1765998638266,-225.73772161,0.00014057,2]
[398921327,1765998638276,-500.0,0.00014057,2]
[398921329,1765998638287,-500.0,0.00014057,2]
[398921331,1765998638296,-500.0,0.00014057,2]
[398921333,1765998638305,-404.9,0.00014057,2]
[398921335,1765998638314,-9999.99,0.00014057,2]
[398921337,1765998638324,-510.31,0.00014058,2]
[398921339,1765998638334,-23607.62,0.00014058,2]
[398921340,1765998638347,-999.99,0.00014058,2]
[398921341,1765998638357,-9999.99,0.00014058,2]
[398921342,1765998638366,-3822.44,0.00014058,2]
[398921343,1765998638375,-150.99,0.00014058,2]